bitfinex-derivatives/quotes_BTCF0:USTF0_20251202
["timestamp","ask_amount","ask_price","bid_price","bid_amount"]
[1764667692926,0.00011994,86950.0,86949.0,0.56437097]
[1764667693329,0.00111994,86950.0,86949.0,0.96437097]
[1764667693527,0.00017251,86958.0,86957.0,0.1726]
[1764667693733,0.00017251,86958.0,86957.0,0.56437097]
[1764667693932,0.16713251,86958.0,86957.0,0.5334]
[1764667694533,0.16713251,86958.0,86957.0,0.5344]
[1764667695136,0.16713251,86958.0,86957.0,0.1736]
[1764667695936,0.00017251,86958.0,86957.0,0.1736]
[1764667696143,0.00117251,86958.0,86957.0,0.1726]
[1764667696644,0.00017251,86958.0,86957.0,0.1726]
[1764667696843,0.00117251,86958.0,86957.0,0.1726]
[1764667697244,0.00017251,86958.0,86957.0,0.1726]
[1764667697545,0.00117251,86958.0,86957.0,0.1726]
[1764667698943,0.16813251,86958.0,86957.0,0.1726]
[1764667699445,0.00117251,86958.0,86957.0,0.1726]
[1764667699642,0.16813251,86958.0,86957.0,0.1726]
[1764667701047,0.08593251,86958.0,86957.0,0.1726]
[1764667701641,0.16813251,86958.0,86957.0,0.1726]
[1764667705850,0.16696,86951.0,86950.0,0.53584]
[1764667706054,0.08476,86951.0,86950.0,0.7199416]
[1764667706256,0.08476,86951.0,86950.0,0.70844]
[1764667707159,0.0115013,86953.0,86952.0,0.1726]
[1764667707355,0.0962613,86953.0,86952.0,0.1726]
[1764667708255,0.1784613,86953.0,86952.0,0.1726]
[1764667709543,0.0115013,86953.0,86952.0,0.1726]
[1764667711656,0.1832413,86953.0,86952.0,0.1726]
[1764667711963,0.23239732,86956.0,86955.0,0.16558]
[1764667712146,0.17056,86956.0,86955.0,0.16558]
[1764667713552,0.01167311,86958.0,86957.0,0.16672]
[1764667713952,0.09676311,86958.0,86957.0,0.16672]
[1764667714564,0.17953311,86958.0,86957.0,0.16672]
[1764667720055,0.1793615,86951.0,86950.0,0.70256]
[1764667720255,0.16786,86951.0,86950.0,0.73358171]
[1764667720450,0.16786,86951.0,86950.0,0.19774171]
[1764667720663,0.16786,86951.0,86950.0,0.16672]
[1764667721964,0.16886,86951.0,86950.0,0.16672]
[1764667722667,0.16786,86942.0,86941.0,0.16689251]
[1764667722856,0.16786,86942.0,86941.0,0.73337946]
[1764667723464,0.1793627,86942.0,86941.0,0.73337946]
[1764667724469,0.16786,86942.0,86941.0,0.73337946]
[1764667727276,0.16786,86942.0,86941.0,0.70233251]
[1764667731467,0.16786,86942.0,86941.0,0.00017251]
[1764667731772,0.1793644,86929.0,86928.0,0.58984]
[1764667732870,0.1793644,86929.0,86928.0,0.59184]
[1764667733070,0.1793644,86929.0,86928.0,0.59284]
[1764667740181,0.1793644,86929.0,86928.0,0.16972]
[1764667740374,0.1793644,86929.0,86928.0,0.003]
[1764667740685,0.1793649,86925.0,86924.0,0.00012281]
[1764667740886,0.1793654,86921.0,86920.0,0.53549251]
[1764667741075,0.1793654,86921.0,86920.0,0.61985251]
[1764667741580,0.1793654,86921.0,86920.0,0.70221251]
[1764667741785,0.17948083,86921.0,86920.0,0.70221251]
[1764667741974,0.18148083,86921.0,86920.0,0.70221251]
[1764667742485,0.17948083,86921.0,86920.0,0.70221251]
[1764667742784,0.00211543,86921.0,86920.0,1.09399758]
[1764667743174,0.00111543,86921.0,86920.0,1.09399758]
[1764667744277,0.00111543,86921.0,86920.0,1.06301251]
[1764667745181,0.00011543,86921.0,86920.0,1.06301251]
[1764667746278,0.15725543,86921.0,86920.0,1.06301251]
[1764667747987,0.15825543,86921.0,86920.0,1.06301251]
[1764667750286,0.07953543,86921.0,86920.0,1.06301251]
[1764667750488,0.00111543,86921.0,86920.0,1.06301251]
[1764667751482,0.00011543,86921.0,86920.0,1.06301251]
[1764667753894,0.00017251,86937.0,86936.0,0.15319]
[1764667754084,0.00017251,86937.0,86936.0,1.04939]
[1764667754889,0.00017251,86937.0,86936.0,1.08029004]
[1764667756306,0.0115007,86958.0,86947.0,0.0239]
[1764667756490,0.0115009,86957.0,86956.0,0.0115008]
[1764667756793,0.0899209,86957.0,86956.0,0.15319]
[1764667756996,0.1686409,86957.0,86956.0,0.15319]
[1764667758082,0.1696409,86957.0,86956.0,0.15319]
[1764667760386,0.1686409,86957.0,86956.0,0.15319]
[1764667760701,0.1696409,86957.0,86956.0,0.15319]
[1764667762793,0.1686409,86957.0,86956.0,0.15319]
[1764667762988,0.1696409,86957.0,86956.0,0.15319]
[1764667763390,0.1686409,86957.0,86956.0,0.15319]
[1764667763696,0.1696409,86957.0,86956.0,0.15319]
[1764667765792,0.15814,86957.0,86956.0,0.07768]
[1764667766189,0.15814,86957.0,86950.0,0.3608]
[1764667766190,0.1686415,86951.0,86950.0,0.43848]
[1764667766405,0.15714,86949.0,86948.0,0.00017251]
[1764667766702,0.15714,86949.0,86948.0,0.15336251]
[1764667768203,0.06206273,86961.0,86960.0,0.1646903]
[1764667768502,0.15731251,86965.0,86964.0,0.15319]
[1764667769691,0.15831251,86965.0,86964.0,0.15319]
[1764667771093,0.51911251,86965.0,86964.0,0.07768]
[1764667771310,0.1686407,86957.0,86956.0,0.68847]
[1764667771604,0.1686407,86957.0,86956.0,0.53528]
[1764667772000,0.1686407,86957.0,86956.0,0.61296]
[1764667773703,0.1686407,86957.0,86956.0,0.68847]
[1764667774003,0.1706407,86957.0,86956.0,0.68847]
[1764667774391,0.1706407,86957.0,86956.0,0.53528]
[1764667775999,0.0115017,86949.0,86945.0,0.3723022]
[1764667776196,0.1527917,86949.0,86948.0,0.13827251]
[1764667776805,0.002,86957.0,86956.0,0.0115008]
[1764667777114,0.0114999,86963.0,86962.0,0.13695]
[1764667777399,0.00017251,86965.0,86964.0,0.13695]
[1764667777400,0.13742251,86965.0,86964.0,0.13695]
[1764667780010,0.13842251,86965.0,86964.0,0.13695]
[1764667781405,0.13742251,86965.0,86964.0,0.13695]
[1764667781609,0.13842251,86965.0,86964.0,0.13695]
[1764667784519,0.13725,86954.0,86953.0,0.49775]
[1764667785717,0.13725,86954.0,86953.0,0.49875]
[1764667786009,0.1487511,86954.0,86953.0,0.49875]
[1764667786614,0.23144752,86954.0,86953.0,0.49875]
[1764667787812,0.23244752,86954.0,86953.0,0.49775]
[1764667788806,0.23344752,86954.0,86953.0,0.49775]
[1764667789408,0.23244752,86954.0,86953.0,0.49775]
[1764667790919,0.23144752,86954.0,86953.0,0.49775]
[1764667791109,0.23244752,86954.0,86953.0,0.49775]
[1764667791510,0.23144752,86954.0,86953.0,0.49775]
[1764667791710,0.23244752,86954.0,86953.0,0.49775]
[1764667792620,0.23144752,86954.0,86953.0,0.49775]
[1764667792821,0.23244752,86954.0,86953.0,0.49775]
[1764667794112,0.23144752,86954.0,86953.0,0.49775]
[1764667794324,0.1497511,86954.0,86953.0,0.49775]
[1764667795325,0.1487517,86949.0,86948.0,0.13712251]
[1764667795618,0.1487517,86949.0,86948.0,0.00017251]
[1764667797823,0.1507517,86949.0,86948.0,0.00017251]
[1764667798320,0.1487517,86949.0,86948.0,0.00017251]
[1764667798523,0.1517517,86949.0,86948.0,0.00017251]
[1764667800224,0.1487517,86949.0,86948.0,0.00017251]
[1764667800426,0.0115047,86927.0,86926.0,0.3608]
[1764667800626,0.1487547,86927.0,86926.0,0.49775]
[1764667801730,0.1487547,86927.0,86926.0,0.49975]
[1764667802731,0.1487547,86927.0,86926.0,0.13895]
[1764667803434,0.1487547,86927.0,86926.0,0.002]
[1764667803837,0.1487547,86927.0,86918.0,0.00017251]
[1764667803838,0.1396957,86919.0,86918.0,0.00017251]
[1764667804426,0.1396957,86919.0,86918.0,0.06255251]
[1764667804625,0.1396957,86919.0,86918.0,0.12554251]
[1764667804927,0.1396957,86919.0,86918.0,0.00117251]
[1764667805333,0.1396957,86919.0,86897.0,0.3608]
[1764667805334,0.12819,86908.0,86907.0,0.06238]
[1764667805540,0.12819,86908.0,86907.0,0.12537]
[1764667805541,0.1396972,86908.0,86907.0,0.12537]
[1764667805842,0.12819,86908.0,86907.0,0.12537]
[1764667806435,0.0115072,86909.0,86899.0,0.12548531]
[1764667806436,0.1396982,86900.0,86899.0,0.12548531]
[1764667806930,0.12819,86900.0,86899.0,0.12548531]
[1764667807941,0.06535,86900.0,86899.0,0.12548531]
[1764667808138,0.06635,86900.0,86899.0,0.12548531]
[1764667808635,0.12919,86900.0,86899.0,0.12548531]
[1764667808937,0.001,86900.0,86899.0,0.12548531]
[1764667809637,0.002,86900.0,86899.0,0.12548531]
[1764667810239,0.0768581,86902.0,86901.0,0.12537]
[1764667810442,0.0115071,86909.0,86908.0,0.12537]
[1764667810641,0.1396971,86909.0,86908.0,0.12537]
[1764667813032,0.1426971,86909.0,86908.0,0.12537]
[1764667813926,0.1396982,86900.0,86899.0,0.12548531]
[1764667814140,0.1396982,86900.0,86899.0,0.06249531]
[1764667814642,0.1396982,86900.0,86899.0,0.12548531]
[1764667815334,0.1396982,86900.0,86899.0,0.00011531]
[1764667816024,0.23339318,86900.0,86899.0,0.06249531]
[1764667816235,0.23339318,86900.0,86899.0,0.00011531]
[1764667819030,0.22188498,86900.0,86899.0,0.12548531]
[1764667821840,0.22188498,86900.0,86899.0,0.06249531]
[1764667822541,0.22188498,86900.0,86899.0,0.12548531]
[1764667824451,0.22188498,86900.0,86899.0,0.00011531]
[1764667825349,0.22188498,86900.0,86899.0,0.12548531]
[1764667828049,0.12919,86900.0,86899.0,0.12548531]
[1764667828948,0.12919,86900.0,86899.0,0.00011531]
[1764667830938,0.139701,86879.0,86878.0,0.12537]
[1764667831150,0.139701,86879.0,86878.0,0.15628618]
[1764667832354,0.139701,86879.0,86878.0,0.15928618]
[1764667832542,0.139701,86879.0,86878.0,0.03391618]
[1764667832742,0.139701,86879.0,86878.0,0.003]
[1764667833245,0.139701,86879.0,86878.0,0.11518]
[1764667834142,0.139701,86879.0,86878.0,0.003]
[1764667834846,0.139701,86879.0,86878.0,0.11122]
[1764667835234,0.139701,86879.0,86878.0,0.11022]
[1764667837047,0.12819,86879.0,86878.0,0.11022]
[1764667838353,0.12819,86879.0,86878.0,0.05645]
[1764667839055,0.12819,86879.0,86878.0,0.002]
[1764667846658,0.1540225,86868.0,86867.0,0.00010494]
[1764667846963,0.1540241,86856.0,86848.0,0.3608]
[1764667847262,0.1540241,86856.0,86855.0,0.41525]
[1764667847454,0.1540241,86856.0,86855.0,0.46902]
[1764667847855,0.15413583,86856.0,86855.0,0.46902]
[1764667848948,0.14262173,86856.0,86855.0,0.46902]
[1764667849346,0.14262173,86856.0,86855.0,0.10822]
[1764667850458,0.00011173,86856.0,86855.0,0.10822]
[1764667850657,0.00011173,86856.0,86855.0,0.46902]
[1764667854662,0.00017262,86864.0,86863.0,0.1541731]
[1764667854965,0.0115109,86880.0,86877.0,0.10822]
[1764667855162,0.0115107,86882.0,86880.0,0.0115109]
[1764667855360,0.0650001,86886.0,86885.0,0.10822]
[1764667856164,0.0650001,86886.0,86885.0,0.1197302]
[1764667856355,0.0650001,86886.0,86885.0,0.10822]
[1764667856872,0.1206701,86886.0,86885.0,0.10822]
[1764667857370,0.1266701,86886.0,86885.0,0.10822]
[1764667862460,0.1596701,86886.0,86885.0,0.10822]
[1764667862662,0.1130011,86878.0,86877.0,0.10538262]
[1764667863373,0.0601907,86882.0,86881.0,0.10521]
[1764667863672,0.10149,86882.0,86881.0,0.10521]
[1764667864673,0.3608,86884.0,86883.0,0.10521]
[1764667865060,0.40948,86884.0,86883.0,0.10521]
[1764667865571,0.46229,86884.0,86883.0,0.10521]
[1764667866370,0.46729,86884.0,86883.0,0.10521]
[1764667866570,0.46829,86884.0,86883.0,0.10521]
[1764667866868,0.10749,86884.0,86883.0,0.10521]
[1764667867869,0.10149,86884.0,86883.0,0.10521]
[1764667869478,0.10249,86884.0,86883.0,0.10521]
[1764667873483,0.10149,86884.0,86883.0,0.10521]
[1764667873682,0.10249,86884.0,86883.0,0.10521]
[1764667874184,0.1140003,86884.0,86883.0,0.1167205]
[1764667875279,0.001,86884.0,86883.0,0.1167205]
[1764667875485,0.00017262,86894.0,86893.0,0.1167192]
[1764667875674,0.00017262,86894.0,86893.0,0.4775192]
[1764667876982,0.00217262,86894.0,86893.0,0.4775192]
[1764667880687,0.0115066,86912.0,86911.0,0.10521]
[1764667880887,0.0601866,86912.0,86911.0,0.10521]
[1764667881077,0.1129966,86912.0,86911.0,0.10521]
[1764667881886,0.1139966,86912.0,86911.0,0.10521]
[1764667882077,0.1179966,86912.0,86911.0,0.10521]
[1764667888186,0.1149966,86912.0,86911.0,0.10521]
[1764667888483,0.13449,86905.0,86904.0,0.46601]
[1764667891485,0.13449,86905.0,86903.0,0.00017262]
[1764667891686,0.16954093,86904.0,86903.0,0.00017262]
[1764667891885,0.1076277,86904.0,86903.0,0.00017262]
[1764667892090,0.104459,86894.0,86885.0,0.3608]
[1764667892291,0.1312701,86886.0,86885.0,0.3608]
[1764667892589,0.1312701,86886.0,86874.0,0.40539]
[1764667892590,0.1044615,86875.0,86874.0,0.40539]
[1764667892977,0.09295,86875.0,86874.0,0.40539]
[1764667893178,0.09295,86875.0,86874.0,0.45275]
[1764667893993,0.09167,86880.0,86879.0,0.105031]
[1764667895090,0.12121,86880.0,86879.0,0.09352]
[1764667895591,0.09184262,86883.0,86882.0,0.09352]
[1764667905704,0.09167,86875.0,86874.0,0.45432]
[1764667905900,0.1031815,86875.0,86874.0,0.45432]
[1764667906109,0.1031815,86875.0,86874.0,0.3608]
[1764667906299,0.1031815,86875.0,86864.0,0.3608]
[1764667906300,0.1031826,86867.0,86866.0,0.09369262]
[1764667906605,0.09167,86867.0,86866.0,0.09369262]
[1764667907700,0.09167,86867.0,86866.0,0.09569262]
[1764667908508,0.09167,86867.0,86866.0,0.09669262]
[1764667909805,0.09167,86867.0,86866.0,0.00317262]
[1764667910598,0.09167,86867.0,86866.0,0.09669262]
[1764667910799,0.09167,86867.0,86866.0,0.04933262]
[1764667910998,0.09167,86867.0,86866.0,0.09669262]
[1764667911700,0.09167,86867.0,86866.0,0.00317262]
[1764667913415,0.1327241,86856.0,86855.0,0.45432]
[1764667914818,0.1327241,86856.0,86855.0,0.3608]
[1764667915914,0.1327241,86856.0,86855.0,0.40696]
[1764667916413,0.1327241,86856.0,86855.0,0.45432]
[1764667917204,0.12121,86856.0,86855.0,0.45432]
[1764667918322,0.12121,86856.0,86855.0,0.40696]
[1764667918806,0.12121,86856.0,86855.0,0.45432]
[1764667920624,0.09167,86846.0,86845.0,0.45432]
[1764667920819,0.09167,86846.0,86845.0,0.40696]
[1764667921322,0.12121,86856.0,86855.0,0.09352]
[1764667921622,0.1327233,86862.0,86861.0,0.09352]
[1764667923325,0.1337233,86862.0,86861.0,0.09352]
[1764667929327,0.12221,86862.0,86861.0,0.09352]
[1764667931031,0.001,86862.0,86861.0,0.09352]
[1764667931425,0.04333,86862.0,86861.0,0.09352]
[1764667931618,0.08793,86862.0,86861.0,0.09352]
[1764667934222,0.001,86862.0,86861.0,0.09352]
[1764667934434,0.00017262,86864.0,86863.0,0.08802]
[1764667934723,0.08693,86878.0,86874.0,0.0115115]
[1764667934926,0.0984411,86878.0,86877.0,0.08802]
[1764667935513,0.3608,86880.0,86879.0,0.08802]
[1764667935726,0.08693,86895.0,86894.0,0.08802]
[1764667936118,0.098439,86895.0,86894.0,0.08802]
[1764667936314,0.098439,86895.0,86894.0,0.04369]
[1764667937319,0.098439,86895.0,86894.0,0.08802]
[1764667937626,0.08693,86881.0,86880.0,0.08802]
[1764667937826,0.08693,86881.0,86880.0,0.62346]
[1764667940420,0.08693,86881.0,86880.0,0.08802]
[1764667940619,0.08693,86881.0,86880.0,0.62342]
[1764667940823,0.08693,86881.0,86880.0,0.08802]
[1764667941121,0.08693,86881.0,86880.0,0.04369]
[1764667941324,0.0115105,86883.0,86871.0,0.00017262]
[1764667941325,0.0984419,86872.0,86871.0,0.00017262]
[1764667942430,0.0984419,86872.0,86871.0,0.08819262]
[1764667942933,0.0984419,86872.0,86871.0,0.00117262]
[1764667946635,0.08693,86872.0,86871.0,0.00117262]
[1764667948726,0.08693,86872.0,86871.0,0.08919262]
[1764667952548,0.07661262,86880.0,86879.0,0.07425]
[1764667954035,0.07761262,86880.0,86879.0,0.07425]
[1764667954239,0.09963262,86880.0,86879.0,0.07425]
[1764667954922,0.07661262,86880.0,86879.0,0.07425]
[1764667956042,0.09863262,86880.0,86879.0,0.07425]
[1764667957435,0.09963262,86880.0,86879.0,0.07425]
[1764667958951,0.09963262,86880.0,86871.0,0.00017262]
[1764667958952,0.0880119,86873.0,86872.0,0.07404]
[1764667959340,0.0880119,86873.0,86872.0,0.0855519]
[1764667959836,0.0880119,86873.0,86872.0,0.07404]
[1764667960145,0.0880119,86873.0,86872.0,0.07504]
[1764667960540,0.0765,86873.0,86872.0,0.07604]
[1764667961946,0.0765,86873.0,86872.0,0.07504]
[1764667962246,0.0880118,86873.0,86872.0,0.07404]
[1764667962442,0.0765,86873.0,86872.0,0.07404]
[1764667973546,0.0765,86873.0,86872.0,0.03687]
[1764667973850,0.0880119,86872.0,86871.0,0.53553262]
[1764667974042,0.0880119,86872.0,86871.0,0.57240262]
[1764667974356,0.0880119,86872.0,86871.0,0.00017262]
[1764667974742,0.15001224,86872.0,86871.0,0.00017262]
[1764667976351,0.0880119,86872.0,86871.0,0.00017262]
[1764667979657,0.1100335,86860.0,86859.0,0.3608]
[1764667979952,0.0880146,86852.0,86851.0,0.3608]
[1764667980940,0.0880159,86842.0,86841.0,0.3608]
[1764667981956,0.0765,86842.0,86841.0,0.43484]
[1764667982354,0.0765,86842.0,86841.0,0.43684]
[1764667983157,0.0765,86842.0,86841.0,0.43784]
[1764667997268,0.0765,86842.0,86841.0,0.3638]
[1764667998070,0.0765,86842.0,86841.0,0.43307]
[1764668002174,0.0765,86842.0,86841.0,0.39884]
[1764668002374,0.0765,86842.0,86841.0,0.3638]
[1764668002763,0.0765,86842.0,86841.0,0.39874]
[1764668003470,0.0765,86842.0,86841.0,0.432]
[1764668004974,0.0765,86842.0,86841.0,0.0712]
[1764668005170,0.0765,86842.0,86841.0,0.003]
[1764668006472,0.0765,86842.0,86841.0,0.002]
[1764668006967,0.0765,86842.0,86841.0,0.0702]
[1764668013665,0.0765,86842.0,86841.0,0.431]
[1764668014672,0.0765,86842.0,86841.0,0.4425161]
[1764668018685,0.0765,86842.0,86841.0,0.431]
[1764668021069,0.02202,86850.0,86849.0,0.073125]
[1764668021070,0.08266712,86850.0,86849.0,0.073125]
[1764668021279,0.0621684,86851.0,86849.0,0.546955]
[1764668021586,0.0313,86854.0,86853.0,0.06161]
[1764668021883,0.06414,86854.0,86853.0,0.06161]
[1764668022387,0.0313,86854.0,86853.0,0.06161]
[1764668022980,0.0323,86854.0,86853.0,0.06161]
[1764668023780,0.06514,86854.0,86853.0,0.06161]
[1764668026982,0.001,86854.0,86853.0,0.06161]
[1764668027189,0.06514,86854.0,86853.0,0.06161]
[1764668031277,0.001,86854.0,86853.0,0.06161]
[1764668031789,0.06514,86854.0,86853.0,0.06161]
[1764668032984,0.06514,86854.0,86853.0,0.59697]
[1764668033490,0.06514,86854.0,86853.0,0.06161]
[1764668033792,0.06514,86854.0,86853.0,0.59697]
[1764668034994,0.06514,86854.0,86853.0,0.59693]
[1764668036194,0.0766543,86854.0,86853.0,0.59693]
[1764668036493,0.0766543,86854.0,86853.0,0.06161]
[1764668036692,0.0766543,86854.0,86853.0,0.59693]
[1764668037494,0.0766543,86854.0,86853.0,0.06161]
[1764668037792,0.0766543,86854.0,86853.0,0.59693]
[1764668041295,0.0766543,86854.0,86853.0,0.6084445]
[1764668041799,0.0766543,86854.0,86853.0,0.59693]
[1764668041982,0.0766543,86854.0,86853.0,0.06161]
[1764668042181,0.0766543,86854.0,86853.0,0.59693]
[1764668042598,0.06514,86854.0,86853.0,0.59693]
[1764668042799,0.001,86854.0,86853.0,0.59693]
[1764668043094,0.00017262,86860.0,86859.0,0.0584737]
[1764668044089,0.00217262,86860.0,86859.0,0.0584737]
[1764668044404,0.00217262,86860.0,86859.0,0.0594737]
[1764668044795,0.00017262,86860.0,86859.0,0.0604737]
[1764668055600,0.00017262,86860.0,86859.0,0.09136584]
[1764668058504,0.02884262,86860.0,86859.0,0.09136584]
[1764668059303,0.00017262,86860.0,86859.0,0.09136584]
[1764668059596,0.02884262,86860.0,86859.0,0.09136584]
[1764668059997,0.00017262,86860.0,86859.0,0.09136584]
[1764668060592,0.00017262,86860.0,86859.0,0.09036584]
[1764668060792,0.00017262,86860.0,86859.0,0.09136584]
[1764668061098,0.0886122,86870.0,86869.0,0.0584723]
[1764668061298,0.0886122,86870.0,86869.0,0.5936323]
[1764668062503,0.05784,86870.0,86869.0,0.5936323]
[1764668063403,0.05884,86870.0,86869.0,0.5936323]
[1764668064512,0.05784,86870.0,86869.0,0.5936323]
[1764668066007,0.00017273,86878.0,86877.0,0.0584713]
[1764668066313,0.05784,86890.0,86889.0,0.04696]
[1764668066611,0.05784,86890.0,86889.0,0.58208]
[1764668069108,0.0693497,86889.0,86888.0,0.04696]
[1764668069310,0.0693497,86889.0,86888.0,0.58208]
[1764668070505,0.0713497,86889.0,86888.0,0.58208]
[1764668070708,0.0713497,86889.0,86888.0,0.02348]
[1764668070901,0.0693506,86882.0,86881.0,0.00017273]
[1764668071101,0.0693506,86882.0,86881.0,0.47037273]
[1764668071501,0.0693506,86882.0,86881.0,0.00017273]
[1764668071909,0.4301506,86882.0,86881.0,0.00017273]
[1764668072110,0.51281772,86882.0,86881.0,0.00017273]
[1764668072311,0.4301506,86882.0,86881.0,0.00017273]
[1764668073113,0.4311506,86882.0,86881.0,0.00017273]
[1764668073715,0.4341506,86882.0,86881.0,0.00017273]
[1764668079517,0.4341506,86882.0,86881.0,0.02054273]
[1764668079707,0.4341506,86882.0,86881.0,0.00017273]
[1764668080612,0.4311506,86882.0,86881.0,0.00017273]
[1764668080916,0.4341506,86882.0,86881.0,0.00017273]
[1764668081511,0.4331506,86882.0,86881.0,0.00017273]
[1764668088820,0.49519767,86882.0,86881.0,0.00017273]
[1764668093922,0.49519767,86882.0,86881.0,0.02054273]
[1764668094421,0.49519767,86882.0,86881.0,0.04091273]
[1764668094624,0.4331506,86882.0,86881.0,0.04091273]
[1764668094819,0.42164,86882.0,86881.0,0.04091273]
[1764668095023,0.3638,86882.0,86881.0,0.04091273]
[1764668095218,0.3608,86882.0,86881.0,0.04091273]
[1764668095527,0.39161,86882.0,86881.0,0.04091273]
[1764668095914,0.38861,86882.0,86881.0,0.04091273]
[1764668096121,0.41602,86882.0,86881.0,0.04091273]
[1764668096630,0.41702,86882.0,86881.0,0.04091273]
[1764668098119,0.41602,86882.0,86881.0,0.04091273]
[1764668098322,0.41702,86882.0,86881.0,0.04091273]
[1764668101534,0.41602,86882.0,86881.0,0.04091273]
[1764668102127,0.47906707,86882.0,86881.0,0.00017273]
[1764668102332,0.41702,86882.0,86881.0,0.00017273]
[1764668102629,0.41702,86882.0,86860.0,0.04117898]
[1764668102630,0.0858522,86870.0,86869.0,0.38117]
[1764668102831,0.0858522,86870.0,86869.0,0.3608]
[1764668105020,0.0868522,86870.0,86869.0,0.3608]
[1764668105221,0.05792,86862.0,86861.0,0.04091273]
[1764668111236,0.05792,86862.0,86861.0,0.55143273]
[1764668116037,0.05792,86862.0,86860.0,0.0115135]
[1764668116038,0.05792,86851.0,86849.0,0.03086383]
[1764668116238,0.0694358,86843.0,86842.0,0.0569]
[1764668116546,0.0115158,86843.0,86842.0,0.59194]
[1764668117337,0.0115158,86843.0,86842.0,0.59294]
[1764668117740,0.0400658,86843.0,86842.0,0.59294]
[1764668119242,0.0694358,86843.0,86842.0,0.03088]
[1764668119543,0.0694358,86843.0,86827.0,0.0569]
[1764668119544,0.0694378,86828.0,86827.0,0.0569]
[1764668120940,0.0694378,86828.0,86827.0,0.0609]
[1764668123045,0.0694378,86828.0,86806.0,0.41871]
[1764668123046,0.0414506,86807.0,86806.0,0.41871]
[1764668123234,0.0115202,86811.0,86808.0,0.01721]
[1764668123542,0.0115202,86811.0,86810.0,0.05791]
[1764668123848,0.0703902,86811.0,86810.0,0.05791]
[1764668124234,0.0703902,86811.0,86810.0,0.02899]
[1764668124748,0.05887,86809.0,86808.0,0.06291]
[1764668125250,0.05887,86809.0,86808.0,0.05791]
[1764668125743,0.05887,86807.0,86806.0,0.3608]
[1764668126237,0.05887,86807.0,86806.0,0.41871]
[1764668126439,0.05887,86807.0,86806.0,0.05791]
[1764668127437,0.05887,86807.0,86806.0,0.06091]
[1764668127838,0.05887,86807.0,86806.0,0.06191]
[1764668128241,0.05887,86807.0,86806.0,0.03299]
[1764668128449,0.05887,86807.0,86806.0,0.004]
[1764668128650,0.05887,86807.0,86806.0,0.03299]
[1764668128844,0.05887,86807.0,86806.0,0.06191]
[1764668130634,0.0115204,86808.0,86807.0,0.05791]
[1764668130847,0.0404604,86808.0,86807.0,0.05791]
[1764668131047,0.0703904,86808.0,86807.0,0.05791]
[1764668132753,0.0703904,86808.0,86807.0,0.05891]
[1764668133152,0.0115197,86814.0,86813.0,0.05714]
[1764668133341,0.0661797,86814.0,86813.0,0.05714]
[1764668133653,0.0839197,86814.0,86813.0,0.05714]
[1764668134355,0.0839197,86814.0,86813.0,0.06014]
[1764668136255,0.0839197,86814.0,86813.0,0.05814]
[1764668137539,0.0661797,86814.0,86813.0,0.05814]
[1764668142952,0.0272,86814.0,86813.0,0.05814]
[1764668143160,0.01169223,86815.0,86814.0,0.05641]
[1764668143559,0.00017273,86815.0,86814.0,0.05641]
[1764668143943,0.0115181,86826.0,86825.0,0.07274]
[1764668144653,0.0679481,86826.0,86825.0,0.07274]
[1764668145951,0.0689481,86826.0,86825.0,0.07274]
[1764668148263,0.0689481,86826.0,86825.0,0.05641]
[1764668148465,0.0689481,86826.0,86825.0,0.07274]
[1764668148466,0.001,86826.0,86825.0,0.07274]
[1764668150255,0.05743,86826.0,86825.0,0.07274]
[1764668150450,0.05743,86826.0,86825.0,0.05641]
[1764668159964,0.02969,86826.0,86825.0,0.43354]
[1764668160270,0.05743,86826.0,86825.0,0.43354]
[1764668162171,0.0402075,86831.0,86830.0,0.05641]
[1764668162469,0.0679475,86831.0,86830.0,0.05641]
[1764668163362,0.0699475,86831.0,86830.0,0.05641]
[1764668172170,0.13197436,86831.0,86830.0,0.05641]
[1764668172369,0.0699475,86831.0,86830.0,0.05641]
[1764668175170,0.0699475,86831.0,86830.0,0.02754]
[1764668175470,0.0699475,86831.0,86826.0,0.011518]
[1764668175471,0.0680682,86827.0,86826.0,0.011518]
[1764668175656,0.0680682,86827.0,86826.0,0.067588]
[1764668176559,0.0680682,86827.0,86826.0,0.05607]
[1764668177363,0.0844283,86824.0,86823.0,0.3608]
[1764668177567,0.0844283,86824.0,86790.0,0.00999999]
[1764668177568,0.0680691,86818.0,86809.0,0.03083741]
[1764668177767,0.0680691,86818.0,86817.0,0.47473273]
[1764668178670,0.0680691,86818.0,86817.0,0.00017273]
[1764668178873,0.0680696,86814.0,86809.0,0.4938]
[1764668179574,0.0115202,86810.0,86809.0,0.4938]
[1764668179768,0.0680707,86806.0,86805.0,0.3608]
[1764668180879,0.0680707,86806.0,86805.0,0.3618]
[1764668181480,0.1093412,86802.0,86801.0,2.73e-06]
[1764668181968,0.17144239,86802.0,86801.0,2.73e-06]
[1764668182168,0.20216841,86802.0,86801.0,2.73e-06]
[1764668182472,0.20226503,86802.0,86801.0,2.73e-06]
[1764668185968,0.20426503,86802.0,86801.0,2.73e-06]
[1764668186786,0.20526503,86802.0,86801.0,2.73e-06]
[1764668187483,0.20726503,86802.0,86801.0,2.73e-06]
[1764668188572,0.20326503,86802.0,86801.0,2.73e-06]
[1764668188766,0.20826503,86802.0,86801.0,2.73e-06]
[1764668189184,0.20326503,86802.0,86801.0,2.73e-06]
[1764668189482,0.20726503,86802.0,86801.0,2.73e-06]
[1764668193175,0.1080032,86787.0,86786.0,0.3608]
[1764668193385,0.1080044,86778.0,86777.0,0.3608]
[1764668193585,0.10810102,86778.0,86777.0,0.3608]
[1764668197891,0.10810102,86778.0,86777.0,0.40989]
[1764668198996,0.10810102,86778.0,86777.0,0.45763]
[1764668202692,0.09657662,86778.0,86777.0,0.45763]
[1764668211203,0.15867781,86778.0,86777.0,0.45763]
[1764668212392,0.15867781,86778.0,86777.0,0.4691545]
[1764668212702,0.09657662,86778.0,86777.0,0.4691545]
[1764668212901,9.662e-05,86778.0,86777.0,0.4691545]
[1764668215696,0.06227403,86786.0,86785.0,0.1002035]
[1764668215899,0.00017284,86786.0,86785.0,0.4610035]
[1764668216802,0.00217284,86786.0,86785.0,0.4610035]
[1764668217197,0.00017284,86786.0,86785.0,0.4610035]
[1764668217394,0.00117284,86786.0,86785.0,0.4610035]
[1764668219198,0.00017284,86786.0,86785.0,0.4610035]